[Event "44th Chess Olympiad Open 2022"]
[Site "Chennai"]
[Date "2022.08.08"]
[Round "10.59"]
[White "Lutuima, Amaro"]
[Black "Roachford, Adam"]
[Result "1-0"]
[WhiteElo "2048"]
[BlackElo "1443"]
[Annotator "NA RC"]
[PlyCount "68"]
[EventDate "2022.??.??"]
[TimeControl "60"]

1. e4 {[%emt 0:01:11]} e5 {[%emt 0:00:06]} 2. Nf3 {[%emt 0:00:09]} Nc6 {
[%emt 0:00:06]} 3. Bc4 {[%emt 0:00:07]} Bc5 {[%emt 0:00:08]} 4. b4 {[%emt 0:00:
00]} Bxb4 {[%emt 0:01:44]} 5. c3 {[%emt 0:00:11]} Ba5 {[%emt 0:02:03]} 6. d4 {
[%emt 0:01:51]} Nf6 {[%emt 0:11:00]} 7. dxe5 {[%emt 0:00:53]} Ng8 {[%emt 0:00:
00]} 8. Qb3 {[%emt 0:01:48]} Qe7 {[%emt 0:02:09]} 9. Ba3 {[%emt 0:00:11]} d6 {
[%emt 0:00:49]} 10. exd6 {[%emt 0:02:01]} cxd6 {[%emt 0:02:26]} 11. O-O {
[%emt 0:00:30]} Bc7 {[%emt 0:07:23]} 12. e5 {[%emt 0:05:24]} Na5 {[%emt 0:00:
00]} 13. Bb5+ {[%emt 0:02:57]} Bd7 {[%emt 0:03:02]} 14. Bxd7+ {[%emt 0:00:02]}
Qxd7 {[%emt 0:00:44]} 15. Qb4 {[%emt 0:00:02]} O-O-O {[%emt 0:00:53]} 16. exd6
{[%emt 0:00:26]} Qxd6 {[%emt 0:00:30]} 17. Qg4+ {[%emt 0:02:19]} Qe6 {[%emt 0:
00:00]} 18. Qxg7 {[%emt 0:02:31]} Nh6 {[%emt 0:27:42]} 19. Nd4 {[%emt 0:17:18]}
Qa6 {[%emt 0:19:40]} 20. Bc1 {[%emt 0:02:31]} Bxh2+ {[%emt 0:01:48]} 21. Kxh2 {
[%emt 0:00:01]} Qxf1 {[%emt 0:00:37]} 22. Qxh6 {[%emt 0:00:03]} Rhg8 {[%emt 0:
00:00]} 23. Qh3+ {[%emt 0:00:29]} Kb8 {[%emt 0:00:47]} 24. Nd2 {[%emt 0:01:38]}
Qxf2 {[%emt 0:00:47]} 25. Ne4 {[%emt 0:00:13]} Qf1 {[%emt 0:01:20]} 26. Ng3 {
[%emt 0:01:32]} Qf6 {[%emt 0:00:36]} 27. Nh5 {[%emt 0:01:11]} Qa6 {[%emt 0:00:
00]} 28. a4 {[%emt 0:00:55]} Nc4 {[%emt 0:00:24]} 29. Bf4+ {[%emt 0:00:03]} Nd6
{[%emt 0:00:34]} 30. Nb5 {[%emt 0:00:20]} Rg6 {[%emt 0:00:30]} 31. Rd1 {
[%emt 0:00:46]} Qxa4 {[%emt 0:00:30]} 32. Rxd6 {[%emt 0:00:00]} Rdxd6 {[%emt 0:
00:00]} 33. Bxd6+ {[%emt 0:00:00]} Rxd6 {[%emt 0:00:32]} 34. Nxd6 {[%emt 0:00:
00]} a5 {[%emt 0:00:37]} 1-0

[Event "44th Chess Olympiad Open 2022"]
[Site "Chennai"]
[Date "2022.08.08"]
[Round "10.59"]
[White "Parsons, Justin"]
[Black "Junior, Domingos"]
[Result "1/2-1/2"]
[WhiteElo "1749"]
[BlackElo "2107"]
[Annotator "NA RC"]
[PlyCount "87"]
[EventDate "2022.??.??"]
[TimeControl "60"]

1. d4 {[%emt 0:00:10]} Nf6 {[%emt 0:00:02]} 2. c4 {[%emt 0:00:24]} e6 {[%emt 0:
00:00]} 3. Nf3 {[%emt 0:00:21]} b6 {[%emt 0:00:04]} 4. g3 {[%emt 0:00:32]} Ba6
{[%emt 0:00:54]} 5. Qc2 {[%emt 0:01:47]} Bb4+ {[%emt 0:01:46]} 6. Bd2 {[%emt 0:
00:00]} Be7 {[%emt 0:00:21]} 7. Bg2 {[%emt 0:00:06]} O-O {[%emt 0:03:11]} 8.
O-O {[%emt 0:01:04]} Bb7 {[%emt 0:00:24]} 9. Nc3 {[%emt 0:00:22]} Na6 {[%emt 0:
00:00]} 10. Rfd1 {[%emt 0:08:31]} c5 {[%emt 0:03:02]} 11. e3 {[%emt 0:07:38]}
Rc8 {[%emt 0:00:28]} 12. Nb5 {[%emt 0:12:05]} cxd4 {[%emt 0:03:55]} 13. exd4 {
[%emt 0:08:09]} Ra8 {[%emt 0:07:09]} 14. Bf4 {[%emt 0:02:33]} d6 {[%emt 0:00:
00]} 15. Rac1 {[%emt 0:01:13]} Qd7 {[%emt 0:03:18]} 16. Qe2 {[%emt 0:03:29]}
Rfc8 {[%emt 0:08:38]} 17. Bh3 {[%emt 0:06:30]} Bxf3 {[%emt 0:15:28]} 18. Qxf3 {
[%emt 0:00:15]} d5 {[%emt 0:00:57]} 19. b3 {[%emt 0:05:40]} Nb4 {[%emt 0:05:01]
} 20. Nc3 {[%emt 0:01:59]} Qc6 {[%emt 0:10:20]} 21. a3 {[%emt 0:14:05]} dxc4 {
[%emt 0:07:39]} 22. Bg2 {[%emt 0:00:43]} Qxf3 {[%emt 0:04:25]} 23. Bxf3 {
[%emt 0:00:09]} Nd3 {[%emt 0:07:17]} 24. Bxa8 {[%emt 0:02:51]} Rxa8 {[%emt 0:
00:00]} 25. Rb1 {[%emt 0:02:48]} Nxf4 {[%emt 0:00:19]} 26. gxf4 {[%emt 0:00:06]
} cxb3 {[%emt 0:00:31]} 27. Rxb3 {[%emt 0:00:13]} Bd6 {[%emt 0:00:02]} 28. f5 {
[%emt 0:04:00]} exf5 {[%emt 0:00:32]} 29. Nb5 {[%emt 0:00:16]} Bf4 {[%emt 0:00:
00]} 30. d5 {[%emt 0:00:39]} Nd7 {[%emt 0:03:27]} 31. Nd4 {[%emt 0:01:11]} g6 {
[%emt 0:00:18]} 32. Rf3 {[%emt 0:01:16]} Bd6 {[%emt 0:00:16]} 33. Nb5 {[%emt 0:
00:00]} Bc5 {[%emt 0:00:49]} 34. Rc3 {[%emt 0:02:44]} Kf8 {[%emt 0:00:21]} 35.
Kg2 {[%emt 0:01:17]} a5 {[%emt 0:00:37]} 36. Re1 {[%emt 0:04:23]} Rd8 {[%emt 0:
00:00]} 37. Rd3 {[%emt 0:00:50]} Nf6 {[%emt 0:01:16]} 38. d6 {[%emt 0:02:23]}
Ne4 {[%emt 0:01:06]} 39. f3 {[%emt 0:00:39]} Nxd6 {[%emt 0:01:34]} 40. Red1 {
[%emt 0:00:09]} Ke7 {[%emt 0:00:05]} 41. Re1+ {[%emt 0:30:49]} Kf6 {[%emt 0:00:
00]} 42. Red1 {[%emt 0:00:10]} Ke6 {[%emt 0:04:41]} 43. Re1+ {[%emt 0:02:15]}
Kf6 {[%emt 0:00:00]} 44. Red1 {[%emt 0:00:00]} 1/2-1/2

[Event "44th Chess Olympiad Open 2022"]
[Site "Chennai"]
[Date "2022.08.08"]
[Round "10.60"]
[White "Ahmad, Al Khatib"]
[Black "Amini, Habibullah"]
[Result "0-1"]
[WhiteElo "2244"]
[BlackElo "2035"]
[Annotator "NA RC"]
[PlyCount "120"]
[EventDate "2022.??.??"]
[TimeControl "60"]

1. e4 {[%emt 0:00:02]} d6 {[%emt 0:00:09]} 2. d4 {[%emt 0:00:08]} Nf6 {[%emt 0:
00:00]} 3. Nc3 {[%emt 0:00:06]} g6 {[%emt 0:00:09]} 4. Be3 {[%emt 0:00:31]} c6
{[%emt 0:00:34]} 5. h3 {[%emt 0:03:24]} Nbd7 {[%emt 0:03:02]} 6. f4 {[%emt 0:
00:00]} Nb6 {[%emt 0:07:43]} 7. Bd3 {[%emt 0:04:20]} d5 {[%emt 0:03:34]} 8. e5
{[%emt 0:01:26]} Nh5 {[%emt 0:00:10]} 9. Qf3 {[%emt 0:03:48]} Ng7 {[%emt 0:00:
00]} 10. Nge2 {[%emt 0:05:17]} h5 {[%emt 0:01:07]} 11. O-O-O {[%emt 0:14:36]}
h4 {[%emt 0:00:40]} 12. g4 {[%emt 0:01:59]} hxg3 {[%emt 0:00:12]} 13. Nxg3 {
[%emt 0:00:44]} Nf5 {[%emt 0:02:36]} 14. Nxf5 {[%emt 0:06:39]} gxf5 {[%emt 0:
00:00]} 15. h4 {[%emt 0:01:46]} Be6 {[%emt 0:00:46]} 16. h5 {[%emt 0:04:21]}
Bh6 {[%emt 0:01:23]} 17. b3 {[%emt 0:02:23]} Nc8 {[%emt 0:05:34]} 18. Qh3 {
[%emt 0:04:14]} b5 {[%emt 0:00:17]} 19. Bxf5 {[%emt 0:02:29]} Bxf5 {[%emt 0:00:
00]} 20. Qxf5 {[%emt 0:00:11]} e6 {[%emt 0:00:07]} 21. Qd3 {[%emt 0:03:23]} Ne7
{[%emt 0:00:02]} 22. Ne2 {[%emt 0:03:58]} Nf5 {[%emt 0:00:24]} 23. Rdg1 {
[%emt 0:00:46]} a5 {[%emt 0:04:28]} 24. Bd2 {[%emt 0:04:38]} Qb6 {[%emt 0:00:
00]} 25. Ng3 {[%emt 0:01:01]} Qxd4 {[%emt 0:04:52]} 26. Qxd4 {[%emt 0:02:50]}
Nxd4 {[%emt 0:00:09]} 27. Kd1 {[%emt 0:06:06]} Nf3 {[%emt 0:03:31]} 28. Rf1 {
[%emt 0:00:12]} Nxd2 {[%emt 0:00:37]} 29. Kxd2 {[%emt 0:00:05]} Rg8 {[%emt 0:
00:00]} 30. Ne2 {[%emt 0:01:40]} Kd7 {[%emt 0:01:18]} 31. Rhg1 {[%emt 0:01:22]}
c5 {[%emt 0:01:11]} 32. Ke3 {[%emt 0:01:13]} Rh8 {[%emt 0:04:35]} 33. Kf3 {
[%emt 0:03:18]} b4 {[%emt 0:04:12]} 34. c4 {[%emt 0:04:41]} bxc3 {[%emt 0:00:
00]} 35. Nxc3 {[%emt 0:00:03]} Rab8 {[%emt 0:00:39]} 36. Na4 {[%emt 0:05:40]}
Rhc8 {[%emt 0:01:58]} 37. Rc1 {[%emt 0:01:05]} c4 {[%emt 0:00:03]} 38. Rgd1 {
[%emt 0:00:32]} Rb4 {[%emt 0:01:01]} 39. f5 {[%emt 0:00:26]} Bxc1 {[%emt 0:00:
00]} 40. Rxc1 {[%emt 0:00:29]} cxb3 {[%emt 0:00:22]} 41. fxe6+ {[%emt 0:00:37]}
fxe6 {[%emt 0:00:03]} 42. Rxc8 {[%emt 0:01:07]} Kxc8 {[%emt 0:00:03]} 43. axb3
{[%emt 0:00:09]} Rxb3+ {[%emt 0:00:14]} 44. Kg2 {[%emt 0:00:23]} Kd8 {[%emt 0:
00:00]} 45. h6 {[%emt 0:02:10]} Ke7 {[%emt 0:00:41]} 46. Nc5 {[%emt 0:14:24]}
Rb8 {[%emt 0:00:21]} 47. Nd3 {[%emt 0:01:50]} a4 {[%emt 0:01:02]} 48. h7 {
[%emt 0:02:56]} Rh8 {[%emt 0:00:12]} 49. Kf2 {[%emt 0:02:16]} a3 {[%emt 0:00:
00]} 50. Nb4 {[%emt 0:00:13]} Rxh7 {[%emt 0:00:09]} 51. Ke3 {[%emt 0:01:31]}
Rh2 {[%emt 0:00:31]} 52. Nc6+ {[%emt 0:00:20]} Ke8 {[%emt 0:00:15]} 53. Nd4 {
[%emt 0:00:20]} Kf7 {[%emt 0:00:28]} 54. Kd3 {[%emt 0:06:23]} a2 {[%emt 0:00:
00]} 55. Nf3 {[%emt 0:02:56]} Rh5 {[%emt 0:00:17]} 56. Ke3 {[%emt 0:00:31]}
a1=Q {[%emt 0:01:53]} 57. Kf4 {[%emt 0:00:30]} Rf5+ {[%emt 0:00:26]} 58. Kg4 {
[%emt 0:00:30]} Qd1 {[%emt 0:00:27]} 59. Kh4 {[%emt 0:00:12]} Qh1+ {[%emt 0:00:
00]} 60. Kg3 {[%emt 0:00:45]} Rxf3+ {[%emt 0:00:17]} 0-1

[Event "44th Chess Olympiad Open 2022"]
[Site "Chennai"]
[Date "2022.08.08"]
[Round "10.60"]
[White "Ibrahim Alwahsh"]
[Black "Sulaiman, Ahmad Ashrafi"]
[Result "1/2-1/2"]
[WhiteElo "2058"]
[BlackElo "1953"]
[Annotator "NA RC"]
[PlyCount "86"]
[EventDate "2022.??.??"]
[TimeControl "60"]

1. Nf3 {[%emt 0:00:04]} d5 {[%emt 0:00:11]} 2. g3 {[%emt 0:00:05]} Nf6 {
[%emt 0:00:09]} 3. Bg2 {[%emt 0:00:05]} c6 {[%emt 0:00:22]} 4. O-O {[%emt 0:00:
00]} Bf5 {[%emt 0:00:12]} 5. b3 {[%emt 0:00:43]} h6 {[%emt 0:00:10]} 6. Bb2 {
[%emt 0:00:08]} e6 {[%emt 0:00:21]} 7. d3 {[%emt 0:00:14]} Nbd7 {[%emt 0:00:10]
} 8. Nbd2 {[%emt 0:00:23]} Be7 {[%emt 0:00:17]} 9. e4 {[%emt 0:08:44]} dxe4 {
[%emt 0:00:15]} 10. dxe4 {[%emt 0:00:15]} Bh7 {[%emt 0:00:16]} 11. Qe2 {
[%emt 0:00:14]} O-O {[%emt 0:00:13]} 12. Kh1 {[%emt 0:02:18]} Qc7 {[%emt 0:00:
00]} 13. Nh4 {[%emt 0:01:33]} Ne8 {[%emt 0:10:03]} 14. f4 {[%emt 0:00:16]} Bf6
{[%emt 0:00:36]} 15. e5 {[%emt 0:05:53]} Be7 {[%emt 0:03:51]} 16. Ne4 {[%emt 0:
00:00]} Nc5 {[%emt 0:01:08]} 17. Nxc5 {[%emt 0:00:31]} Bxc5 {[%emt 0:00:02]}
18. f5 {[%emt 0:00:08]} exf5 {[%emt 0:02:33]} 19. Nxf5 {[%emt 0:00:12]} Bxf5 {
[%emt 0:00:09]} 20. Rxf5 {[%emt 0:00:06]} Qe7 {[%emt 0:01:42]} 21. Raf1 {
[%emt 0:08:27]} Nc7 {[%emt 0:01:43]} 22. Qc4 {[%emt 0:16:51]} Rad8 {[%emt 0:00:
00]} 23. h4 {[%emt 0:02:11]} Nd5 {[%emt 0:01:32]} 24. Bd4 {[%emt 0:04:12]} Bxd4
{[%emt 0:09:44]} 25. Qxd4 {[%emt 0:00:05]} b6 {[%emt 0:00:48]} 26. R1f2 {
[%emt 0:04:53]} c5 {[%emt 0:02:52]} 27. Qe4 {[%emt 0:06:21]} b5 {[%emt 0:10:49]
} 28. a3 {[%emt 0:04:33]} a5 {[%emt 0:04:19]} 29. Bf1 {[%emt 0:01:33]} Nc3 {
[%emt 0:07:37]} 30. Qe1 {[%emt 0:04:22]} b4 {[%emt 0:00:37]} 31. axb4 {[%emt 0:
00:00]} axb4 {[%emt 0:00:05]} 32. Bd3 {[%emt 0:01:40]} Rd5 {[%emt 0:04:27]} 33.
e6 {[%emt 0:05:14]} Rxf5 {[%emt 0:01:49]} 34. Bxf5 {[%emt 0:00:07]} Kh8 {
[%emt 0:01:30]} 35. Bd3 {[%emt 0:02:55]} fxe6 {[%emt 0:05:22]} 36. Rxf8+ {
[%emt 0:00:26]} Qxf8 {[%emt 0:00:10]} 37. Qxe6 {[%emt 0:00:16]} Nd1 {[%emt 0:
00:00]} 38. Bf5 {[%emt 0:02:54]} Ne3 {[%emt 0:03:33]} 39. Be4 {[%emt 0:01:42]}
Qf1+ {[%emt 0:00:29]} 40. Kh2 {[%emt 0:00:05]} Qf2+ {[%emt 0:00:16]} 41. Kh3 {
[%emt 0:31:33]} Qf1+ {[%emt 0:30:09]} 42. Kh2 {[%emt 0:00:00]} Qf2+ {[%emt 0:
00:00]} 43. Kh3 {[%emt 0:00:00]} Qf1+ {[%emt 0:00:00]} 1/2-1/2

[Event "44th Chess Olympiad Open 2022"]
[Site "Chennai"]
[Date "2022.08.08"]
[Round "10.60"]
[White "Mirzaad, S.wahabuddin"]
[Black "Mansour, Sameer"]
[Result "0-1"]
[WhiteElo "1999"]
[BlackElo "2275"]
[Annotator "RC"]
[PlyCount "174"]
[EventDate "2022.??.??"]
[TimeControl "60"]

1. d4 {[%emt 0:00:18]} Nf6 {[%emt 0:00:23]} 2. Bf4 {[%emt 0:00:57]} g6 {
[%emt 0:00:29]} 3. Nc3 {[%emt 0:00:23]} Bg7 {[%emt 0:00:25]} 4. e4 {[%emt 0:00:
00]} d6 {[%emt 0:00:44]} 5. Qd2 {[%emt 0:01:43]} O-O {[%emt 0:00:16]} 6. O-O-O
{[%emt 0:00:34]} c6 {[%emt 0:00:06]} 7. Bh6 {[%emt 0:02:20]} b5 {[%emt 0:00:22]
} 8. Bxg7 {[%emt 0:01:20]} Kxg7 {[%emt 0:00:04]} 9. f3 {[%emt 0:01:37]} Qa5 {
[%emt 0:00:26]} 10. Kb1 {[%emt 0:08:09]} b4 {[%emt 0:09:45]} 11. Nce2 {[%emt 0:
00:00]} c5 {[%emt 0:00:07]} 12. g4 {[%emt 0:15:15]} cxd4 {[%emt 0:11:33]} 13.
Nxd4 {[%emt 0:01:52]} Bd7 {[%emt 0:01:41]} 14. h4 {[%emt 0:01:23]} h5 {[%emt 0:
00:00]} 15. Qg5 {[%emt 0:05:04]} Qxg5 {[%emt 0:07:10]} 16. hxg5 {[%emt 0:00:05]
} Nh7 {[%emt 0:00:07]} 17. gxh5 {[%emt 0:01:36]} Nxg5 {[%emt 0:00:04]} 18. Rd2
{[%emt 0:03:08]} Nc6 {[%emt 0:00:42]} 19. Nxc6 {[%emt 0:03:24]} Bxc6 {[%emt 0:
00:00]} 20. Rg2 {[%emt 0:00:27]} Ne6 {[%emt 0:01:06]} 21. hxg6 {[%emt 0:17:39]}
fxg6 {[%emt 0:00:16]} 22. Bc4 {[%emt 0:01:27]} Nf4 {[%emt 0:01:16]} 23. Rg4 {
[%emt 0:04:22]} Bd7 {[%emt 0:07:14]} 24. Rgh4 {[%emt 0:02:18]} Nh5 {[%emt 0:00:
00]} 25. Bd3 {[%emt 0:02:14]} Rf4 {[%emt 0:01:46]} 26. Rxf4 {[%emt 0:01:51]}
Nxf4 {[%emt 0:00:02]} 27. Ne2 {[%emt 0:00:15]} Rf8 {[%emt 0:00:26]} 28. Nxf4 {
[%emt 0:03:33]} Rxf4 {[%emt 0:00:04]} 29. Be2 {[%emt 0:01:26]} g5 {[%emt 0:00:
00]} 30. Kc1 {[%emt 0:02:02]} g4 {[%emt 0:03:13]} 31. Kd2 {[%emt 0:02:03]} gxf3
{[%emt 0:03:22]} 32. Ke3 {[%emt 0:00:59]} Rf8 {[%emt 0:00:03]} 33. Bxf3 {
[%emt 0:00:17]} Rc8 {[%emt 0:00:04]} 34. Kd2 {[%emt 0:01:15]} Be6 {[%emt 0:00:
00]} 35. Be2 {[%emt 0:04:56]} Rc5 {[%emt 0:07:01]} 36. Ra1 {[%emt 0:04:52]} Kf6
{[%emt 0:02:21]} 37. a3 {[%emt 0:00:29]} b3 {[%emt 0:00:25]} 38. cxb3 {[%emt 0:
00:00]} Bxb3 {[%emt 0:00:04]} 39. Bd3 {[%emt 0:00:16]} Ke5 {[%emt 0:01:34]} 40.
Rh1 {[%emt 0:03:50]} Kd4 {[%emt 0:00:35]} 41. Rh2 {[%emt 0:32:21]} Rg5 {
[%emt 0:31:15]} 42. Be2 {[%emt 0:00:00]} Rg3 {[%emt 0:00:00]} 43. Rh7 {[%emt 0:
00:00]} Rg2 {[%emt 0:00:00]} 44. Ke1 {[%emt 0:00:00]} Bg8 {[%emt 0:00:00]} 45.
Rh3 {[%emt 0:00:00]} Bc4 {[%emt 0:00:00]} 46. Bxc4 {[%emt 0:00:00]} Kxc4 {
[%emt 0:00:00]} 47. Rh7 {[%emt 0:00:00]} e5 {[%emt 0:00:00]} 48. Rxa7 {[%emt 0:
00:00]} Rxb2 {[%emt 0:00:00]} 49. Ra6 {[%emt 0:00:00]} Kc5 {[%emt 0:00:00]} 50.
Kd1 {[%emt 0:00:00]} Rf2 {[%emt 0:00:39]} 51. Kc1 {[%emt 0:02:23]} Re2 {
[%emt 0:01:08]} 52. Ra4 {[%emt 0:00:59]} Kb5 {[%emt 0:00:24]} 53. Rb4+ {
[%emt 0:00:17]} Kc5 {[%emt 0:00:36]} 54. Ra4 {[%emt 0:00:42]} Ra2 {[%emt 0:00:
00]} 55. Ra6 {[%emt 0:01:17]} Re2 {[%emt 0:04:20]} 56. Ra4 {[%emt 0:00:16]} Kb5
{[%emt 0:00:28]} 57. Rb4+ {[%emt 0:00:11]} Kc6 {[%emt 0:00:16]} 58. Rc4+ {
[%emt 0:00:29]} Kb5 {[%emt 0:00:48]} 59. Rb4+ {[%emt 0:00:08]} Kc5 {[%emt 0:00:
00]} 60. Ra4 {[%emt 0:00:12]} Ra2 {[%emt 0:00:43]} 61. Ra6 {[%emt 0:00:23]} Kd4
{[%emt 0:00:17]} 62. Rxd6+ {[%emt 0:00:23]} Kxe4 {[%emt 0:00:01]} 63. Ra6 {
[%emt 0:00:14]} Kd3 {[%emt 0:00:57]} 64. Kb1 {[%emt 0:02:21]} Rf2 {[%emt 0:00:
00]} 65. Ra8 {[%emt 0:00:42]} e4 {[%emt 0:00:41]} 66. Rd8+ {[%emt 0:00:55]} Kc3
{[%emt 0:00:20]} 67. Rc8+ {[%emt 0:00:20]} Kd4 {[%emt 0:02:56]} 68. Rd8+ {
[%emt 0:00:15]} Ke5 {[%emt 0:00:11]} 69. Re8+ {[%emt 0:00:59]} Kf4 {[%emt 0:00:
00]} 70. a4 {[%emt 0:00:36]} Rd2 {[%emt 0:04:44]} 71. Rf8+ {[%emt 0:00:52]} Kg3
{[%emt 0:00:36]} 72. Rg8+ {[%emt 0:00:15]} Kf2 {[%emt 0:01:07]} 73. Rf8+ {
[%emt 0:00:05]} Ke2 {[%emt 0:00:42]} 74. a5 {[%emt 0:00:23]} Rd6 {[%emt 0:00:
00]} 75. Ra8 {[%emt 0:01:05]} Kd2 {[%emt 0:01:46]} 76. a6 {[%emt 0:00:31]} e3 {
[%emt 0:01:00]} 77. a7 {[%emt 0:00:45]} Rd7 {[%emt 0:00:08]} 78. Rb8 {[%emt 0:
00:00]} Rxa7 {[%emt 0:00:17]} 79. Rd8+ {[%emt 0:00:10]} Ke2 {[%emt 0:00:11]}
80. Kc2 {[%emt 0:00:47]} Rc7+ {[%emt 0:00:06]} 81. Kb2 {[%emt 0:00:09]} Kf2 {
[%emt 0:00:24]} 82. Rf8+ {[%emt 0:00:33]} Ke1 {[%emt 0:00:03]} 83. Rf6 {
[%emt 0:00:38]} e2 {[%emt 0:00:06]} 84. Rf8 {[%emt 0:00:32]} Rc5 {[%emt 0:00:
00]} 85. Rf7 {[%emt 0:00:25]} Kd2 {[%emt 0:00:16]} 86. Rd7+ {[%emt 0:00:29]}
Ke3 {[%emt 0:00:02]} 87. Re7+ {[%emt 0:00:43]} Kd3 {[%emt 0:00:02]} 0-1

[Event "44th Chess Olympiad Open 2022"]
[Site "Chennai"]
[Date "2022.08.08"]
[Round "10.60"]
[White "Sakhawaty, Sepehr"]
[Black "Aboudi, Marwan"]
[Result "0-1"]
[WhiteElo "1809"]
[BlackElo "2144"]
[Annotator "NA RC"]
[PlyCount "87"]
[EventDate "2022.??.??"]
[TimeControl "60"]

1. e4 {[%emt 0:00:04]} c5 {[%emt 0:00:09]} 2. Nf3 {[%emt 0:00:05]} Nc6 {
[%emt 0:00:06]} 3. Bb5 {[%emt 0:00:07]} g6 {[%emt 0:00:04]} 4. Bxc6 {[%emt 0:
00:00]} dxc6 {[%emt 0:00:04]} 5. d3 {[%emt 0:00:26]} Bg7 {[%emt 0:00:05]} 6.
Nc3 {[%emt 0:00:19]} Nf6 {[%emt 0:00:58]} 7. Be3 {[%emt 0:00:29]} b6 {[%emt 0:
00:00]} 8. h3 {[%emt 0:00:03]} Nd7 {[%emt 0:00:17]} 9. Qd2 {[%emt 0:00:20]} h6
{[%emt 0:00:09]} 10. a4 {[%emt 0:00:20]} a5 {[%emt 0:01:20]} 11. Nh2 {[%emt 0:
00:00]} e5 {[%emt 0:00:15]} 12. O-O {[%emt 0:10:24]} Nf8 {[%emt 0:00:06]} 13.
Ne2 {[%emt 0:08:39]} Ne6 {[%emt 0:00:26]} 14. Rad1 {[%emt 0:04:38]} Nd4 {
[%emt 0:07:18]} 15. c3 {[%emt 0:00:22]} Nxe2+ {[%emt 0:00:20]} 16. Qxe2 {
[%emt 0:00:02]} O-O {[%emt 0:01:21]} 17. Qd2 {[%emt 0:08:38]} Kh7 {[%emt 0:00:
00]} 18. d4 {[%emt 0:02:00]} cxd4 {[%emt 0:06:34]} 19. cxd4 {[%emt 0:00:06]} b5
{[%emt 0:16:38]} 20. dxe5 {[%emt 0:08:21]} Qxd2 {[%emt 0:01:00]} 21. Rxd2 {
[%emt 0:00:00]} Bxe5 {[%emt 0:02:57]} 22. f4 {[%emt 0:01:58]} Bf6 {[%emt 0:00:
00]} 23. Rc1 {[%emt 0:05:14]} Ra6 {[%emt 0:10:09]} 24. b3 {[%emt 0:06:59]} Be6
{[%emt 0:09:07]} 25. Rd6 {[%emt 0:02:17]} b4 {[%emt 0:00:40]} 26. Nf3 {[%emt 0:
00:00]} Rc8 {[%emt 0:16:20]} 27. g4 {[%emt 0:03:17]} Be7 {[%emt 0:02:40]} 28.
Rd3 {[%emt 0:00:11]} f5 {[%emt 0:04:40]} 29. exf5 {[%emt 0:03:51]} gxf5 {
[%emt 0:00:02]} 30. g5 {[%emt 0:02:59]} c5 {[%emt 0:01:46]} 31. Ne5 {[%emt 0:
00:00]} hxg5 {[%emt 0:01:44]} 32. fxg5 {[%emt 0:00:07]} Raa8 {[%emt 0:05:13]}
33. h4 {[%emt 0:04:19]} Rd8 {[%emt 0:03:20]} 34. Rxd8 {[%emt 0:07:17]} Rxd8 {
[%emt 0:02:15]} 35. Rb1 {[%emt 0:02:44]} Rd5 {[%emt 0:02:12]} 36. Nc6 {[%emt 0:
00:00]} Rd3 {[%emt 0:00:16]} 37. Kf2 {[%emt 0:01:05]} Bd6 {[%emt 0:01:14]} 38.
Nxa5 {[%emt 0:02:16]} f4 {[%emt 0:00:03]} 39. Bc1 {[%emt 0:01:02]} Rh3 {
[%emt 0:03:47]} 40. Nb7 {[%emt 0:01:11]} Be5 {[%emt 0:00:10]} 41. Ke1 {[%emt 0:
00:00]} Bf5 {[%emt 0:01:30]} 42. Rb2 {[%emt 0:01:09]} Rh1+ {[%emt 0:00:28]} 43.
Kf2 {[%emt 0:01:21]} Bxb2 {[%emt 0:02:15]} 44. Bxf4 {[%emt 0:00:36]} 0-1

[Event "44th Chess Olympiad Open 2022"]
[Site "Chennai"]
[Date "2022.08.08"]
[Round "10.61"]
[White "Tagelsir, Abubaker"]
[Black "Yan, Austin K"]
[Result "1/2-1/2"]
[WhiteElo "2232"]
[BlackElo "1568"]
[Annotator "RC"]
[PlyCount "105"]
[EventDate "2022.??.??"]
[TimeControl "60"]

1. e4 {[%emt 0:00:20]} c5 {[%emt 0:00:06]} 2. Nc3 {[%emt 0:00:06]} d6 {[%emt 0:
00:00]} 3. f4 {[%emt 0:01:03]} g6 {[%emt 0:01:40]} 4. Nf3 {[%emt 0:00:07]} Bg7
{[%emt 0:01:58]} 5. Bb5+ {[%emt 0:00:08]} Bd7 {[%emt 0:01:46]} 6. Bc4 {[%emt 0:
00:00]} Nc6 {[%emt 0:02:10]} 7. d3 {[%emt 0:01:59]} e6 {[%emt 0:01:22]} 8. Be3
{[%emt 0:01:17]} Nd4 {[%emt 0:02:35]} 9. a3 {[%emt 0:04:04]} Ne7 {[%emt 0:00:
00]} 10. Ba2 {[%emt 0:00:12]} O-O {[%emt 0:03:51]} 11. O-O {[%emt 0:03:44]}
Nec6 {[%emt 0:13:20]} 12. Kh1 {[%emt 0:02:14]} b5 {[%emt 0:06:50]} 13. Qd2 {
[%emt 0:05:00]} a5 {[%emt 0:14:11]} 14. Rae1 {[%emt 0:04:37]} b4 {[%emt 0:00:
00]} 15. Nd1 {[%emt 0:01:21]} b3 {[%emt 0:03:18]} 16. cxb3 {[%emt 0:00:17]} Rb8
{[%emt 0:01:43]} 17. Qf2 {[%emt 0:04:20]} Nxf3 {[%emt 0:01:37]} 18. Qxf3 {
[%emt 0:01:08]} Nd4 {[%emt 0:00:11]} 19. Qf2 {[%emt 0:00:39]} Nxb3 {[%emt 0:00:
00]} 20. f5 {[%emt 0:04:39]} exf5 {[%emt 0:02:13]} 21. Bf4 {[%emt 0:07:24]}
fxe4 {[%emt 0:03:07]} 22. Bxd6 {[%emt 0:08:59]} exd3 {[%emt 0:01:24]} 23. Bxb3
{[%emt 0:01:20]} Rxb3 {[%emt 0:00:19]} 24. Bxc5 {[%emt 0:03:27]} Bg4 {[%emt 0:
00:00]} 25. Bxf8 {[%emt 0:01:43]} Qxf8 {[%emt 0:00:02]} 26. Re4 {[%emt 0:02:32]
} Be2 {[%emt 0:01:55]} 27. Rg1 {[%emt 0:00:19]} h5 {[%emt 0:01:52]} 28. Qe3 {
[%emt 0:01:05]} Qd6 {[%emt 0:00:22]} 29. Re8+ {[%emt 0:00:37]} Kh7 {[%emt 0:00:
00]} 30. Qe7 {[%emt 0:02:24]} Qxe7 {[%emt 0:01:13]} 31. Rxe7 {[%emt 0:00:09]}
Bd4 {[%emt 0:00:33]} 32. Re1 {[%emt 0:05:39]} Bxb2 {[%emt 0:00:26]} 33. Nxb2 {
[%emt 0:15:13]} Rxb2 {[%emt 0:00:18]} 34. Rxf7+ {[%emt 0:01:45]} Kh6 {[%emt 0:
00:00]} 35. Rf2 {[%emt 0:00:48]} Ra2 {[%emt 0:00:59]} 36. h3 {[%emt 0:00:16]}
Rxa3 {[%emt 0:00:21]} 37. Rfxe2 {[%emt 0:00:09]} dxe2 {[%emt 0:00:29]} 38. Rxe2
{[%emt 0:00:05]} Ra1+ {[%emt 0:00:37]} 39. Kh2 {[%emt 0:00:08]} h4 {[%emt 0:00:
00]} 40. Re4 {[%emt 0:00:59]} Kh5 {[%emt 0:02:04]} 41. Re5+ {[%emt 0:31:57]}
Kh6 {[%emt 0:06:16]} 42. Re4 {[%emt 0:00:00]} g5 {[%emt 0:00:24]} 43. Re6+ {
[%emt 0:00:00]} Kg7 {[%emt 0:00:11]} 44. Re2 {[%emt 0:00:00]} a4 {[%emt 0:00:
00]} 45. g3 {[%emt 0:00:00]} a3 {[%emt 0:04:45]} 46. gxh4 {[%emt 0:00:00]} gxh4
{[%emt 0:01:37]} 47. Kg2 {[%emt 0:00:00]} Kf6 {[%emt 0:09:59]} 48. Re4 {
[%emt 0:00:00]} Kg5 {[%emt 0:01:44]} 49. Rg4+ {[%emt 0:00:00]} Kh5 {[%emt 0:00:
00]} 50. Ra4 {[%emt 0:00:00]} Kg5 {[%emt 0:01:17]} 51. Rg4+ {[%emt 0:00:00]}
Kh5 {[%emt 0:01:42]} 52. Ra4 {[%emt 0:00:00]} Ra2+ {[%emt 0:00:12]} 53. Kf3 {
[%emt 0:00:00]} 1/2-1/2